bitfinex-derivatives/quotes_BTCF0:USTF0_20250508
["timestamp","ask_amount","ask_price","bid_price","bid_amount"]
[1746689882602,0.001,99216.0,99215.0,1.16706915]
[1746689882806,0.001,99216.0,99215.0,1.13706915]
[1746689883902,0.001,99216.0,99215.0,1.13906915]
[1746689884101,0.001,99216.0,99215.0,1.23404566]
[1746689884307,0.001,99216.0,99215.0,1.25404566]
[1746689884498,0.2025703,99216.0,99215.0,1.25404566]
[1746689884798,0.0503908,99220.0,99215.0,1.25404566]
[1746689884799,0.2015594,99222.0,99221.0,0.2015601]
[1746689885008,0.2015594,99222.0,99221.0,0.7523601]
[1746689885197,0.2015594,99222.0,99221.0,1.0211441]
[1746689885398,0.2015594,99222.0,99221.0,1.1079441]
[1746689886400,0.2015594,99222.0,99221.0,1.1089441]
[1746689887495,0.2967415,99225.0,99224.0,0.201554]
[1746689887700,0.2967415,99225.0,99224.0,0.431554]
[1746689888205,0.2967415,99225.0,99224.0,0.599554]
[1746689888708,0.2463533,99225.0,99224.0,0.599554]
[1746689889606,0.2463533,99225.0,99224.0,0.80337758]
[1746689891810,0.2463533,99225.0,99224.0,0.81487428]
[1746689892308,0.2463533,99225.0,99224.0,0.81491503]
[1746689894105,0.2463533,99225.0,99224.0,0.81591503]
[1746689894706,0.2463533,99225.0,99224.0,0.80337758]
[1746689895809,0.2463533,99225.0,99224.0,0.81471879]
[1746689896111,0.2463533,99225.0,99224.0,0.79471879]
[1746689897501,0.2463533,99225.0,99224.0,0.79472856]
[1746689898306,0.2463533,99225.0,99224.0,0.59090498]
[1746689899307,0.2463533,99225.0,99224.0,0.63497103]
[1746689901006,0.2463533,99225.0,99224.0,0.665754]
[1746689901207,0.2463533,99225.0,99224.0,0.67731838]
[1746689903508,0.2463533,99225.0,99224.0,0.68731838]
[1746689903814,0.2463533,99225.0,99224.0,0.69731838]
[1746689904217,0.2463533,99225.0,99224.0,0.67731838]
[1746689906518,0.2463533,99225.0,99224.0,0.59132498]
[1746689906713,0.2894533,99225.0,99224.0,0.59132498]
[1746689907108,0.2894533,99225.0,99224.0,0.60658969]
[1746689907408,0.2463533,99225.0,99224.0,0.64958969]
[1746689907607,0.2463533,99225.0,99224.0,0.66958969]
[1746689907818,0.0448,99225.0,99224.0,0.66958969]
[1746689908210,0.0448,99225.0,99224.0,0.80958969]
[1746689908517,0.0503829,99235.0,99234.0,0.2519082]
[1746689908713,0.0503829,99235.0,99234.0,0.71447918]
[1746689909020,0.0503829,99235.0,99234.0,0.72974389]
[1746689909315,0.0503829,99235.0,99234.0,0.89774389]
[1746689909518,0.2519146,99235.0,99234.0,0.89774389]
[1746689910019,0.2519146,99235.0,99234.0,0.84736129]
[1746689910205,0.2539146,99235.0,99234.0,0.84736129]
[1746689910408,0.2559146,99235.0,99234.0,0.84736129]
[1746689910914,0.004,99235.0,99234.0,0.84736129]
[1746689911414,0.004,99235.0,99234.0,0.90736129]
[1746689911920,0.004,99235.0,99234.0,0.99526129]
[1746689913419,0.004,99235.0,99234.0,0.99529766]
[1746689913620,0.004,99235.0,99234.0,1.38659763]
[1746689914421,0.2055317,99235.0,99234.0,1.38659763]
[1746689914620,0.2469317,99235.0,99234.0,1.38659763]
[1746689914823,0.0454,99235.0,99234.0,1.38659763]
[1746689915723,0.2469317,99235.0,99234.0,1.38659763]
[1746689916513,0.2469317,99235.0,99234.0,1.18507203]
[1746689916719,0.2469317,99235.0,99234.0,1.32660573]
[1746689916914,0.2469317,99235.0,99234.0,0.93530576]
[1746689917308,0.2469317,99235.0,99234.0,0.94530576]
[1746689918118,0.2469317,99235.0,99234.0,0.94522366]
[1746689919422,0.2469317,99235.0,99234.0,0.74368996]
[1746689919612,0.2920317,99235.0,99234.0,0.90112366]
[1746689920113,0.2920317,99235.0,99234.0,0.8741337]
[1746689921011,0.2920317,99235.0,99234.0,0.88551223]
[1746689922022,0.2469317,99235.0,99234.0,0.8741337]
[1746689922224,0.2469317,99235.0,99234.0,0.88551769]
[1746689922415,0.2469317,99235.0,99234.0,0.8741337]
[1746689922823,0.2449317,99235.0,99234.0,0.8741337]
[1746689923029,0.2469317,99235.0,99234.0,0.8741337]
[1746689923215,0.2469317,99235.0,99234.0,0.88547034]
[1746689923408,0.2469317,99235.0,99234.0,0.87547034]
[1746689924321,0.2469317,99235.0,99234.0,0.8641337]
[1746689925121,0.2469317,99235.0,99234.0,0.87550123]
[1746689925424,0.2459317,99235.0,99234.0,0.87550123]
[1746689925918,0.2439317,99235.0,99234.0,0.87550123]
[1746689928324,0.2439317,99235.0,99234.0,0.87551697]
[1746689928717,0.11546264,99235.0,99234.0,0.87551697]
[1746689930124,0.11546264,99235.0,99234.0,0.87566383]
[1746689931822,0.15816264,99235.0,99234.0,0.8641337]
[1746689932028,0.15816264,99235.0,99234.0,0.87566115]
[1746689932631,0.15816264,99235.0,99234.0,0.67412745]
[1746689935023,0.15816264,99235.0,99234.0,0.6188]
[1746689935230,0.25893464,99235.0,99234.0,0.6188]
[1746689935529,0.15816264,99235.0,99234.0,0.6188]
[1746689936016,0.16816264,99235.0,99234.0,0.6188]
[1746689936427,0.66816264,99235.0,99234.0,0.6188]
[1746689937316,0.66816264,99235.0,99234.0,0.63044626]
[1746689937830,0.66816264,99235.0,99234.0,0.6188]
[1746689940122,0.66816264,99235.0,99234.0,0.63060888]
[1746689940431,0.66816264,99235.0,99234.0,0.6188]
[1746689940622,0.66816264,99235.0,99234.0,0.63055272]
[1746689941830,0.66816264,99235.0,99234.0,0.168]
[1746689942221,0.76893464,99235.0,99234.0,0.168]
[1746689943425,0.77905708,99235.0,99234.0,0.168]
[1746689945033,0.76893464,99235.0,99234.0,0.168]
[1746689945927,0.66816264,99235.0,99234.0,0.168]
[1746689947032,0.66816264,99235.0,99234.0,0.238]
[1746689956021,0.66816264,99235.0,99234.0,0.168]
[1746689957936,0.67116264,99235.0,99234.0,0.168]
[1746689958239,0.67416264,99235.0,99234.0,0.168]
[1746689959636,0.67016264,99235.0,99234.0,0.168]
[1746689959940,0.67416264,99235.0,99234.0,0.168]
[1746689960125,0.62846264,99235.0,99234.0,0.168]
[1746689960329,0.71476264,99235.0,99234.0,0.168]
[1746689961335,0.71276264,99235.0,99234.0,0.168]
[1746689963035,0.71376264,99235.0,99234.0,0.168]
[1746689963434,0.67216264,99235.0,99234.0,0.168]
[1746689963634,0.67316264,99235.0,99234.0,0.168]
[1746689964034,0.67016264,99235.0,99234.0,0.168]
[1746689964236,0.67316264,99235.0,99234.0,0.168]
[1746689965126,0.67316264,99235.0,99234.0,0.17981004]
[1746689965329,0.67316264,99235.0,99234.0,0.168]
[1746689966329,0.66916264,99235.0,99234.0,0.168]
[1746689966525,0.67316264,99235.0,99234.0,0.168]
[1746689967131,0.66916264,99235.0,99234.0,0.168]
[1746689967332,0.62846264,99235.0,99234.0,0.168]
[1746689967533,0.63146264,99235.0,99234.0,0.168]
[1746689967838,0.62146264,99235.0,99234.0,0.168]
[1746689968640,0.62046264,99235.0,99234.0,0.168]
[1746689969939,0.61846264,99235.0,99234.0,0.168]
[1746689971043,0.61946264,99235.0,99234.0,0.168]
[1746689971234,0.62746264,99235.0,99234.0,0.168]
[1746689971436,0.62946264,99235.0,99234.0,0.168]
[1746689972037,0.62946264,99235.0,99234.0,0.5288]
[1746689972535,0.62646264,99235.0,99234.0,0.5288]
[1746689972845,0.62946264,99235.0,99234.0,0.5288]
[1746689973635,0.62946264,99235.0,99234.0,0.6164]
[1746689978343,0.505,99235.0,99234.0,0.8396904]
[1746689978542,0.005,99235.0,99234.0,0.8796904]
[1746689978844,0.005,99235.0,99234.0,0.87971782]
[1746689979346,0.002,99235.0,99234.0,0.87971782]
[1746689979548,0.2015267,99241.0,99240.0,0.2015175]
[1746689979745,0.2015267,99241.0,99240.0,0.33330162]
[1746689980044,0.2015267,99241.0,99240.0,0.50130162]
[1746689980346,0.2015267,99241.0,99240.0,0.58880162]
[1746689980546,0.2015267,99241.0,99240.0,0.63918192]
[1746689981147,0.2015267,99241.0,99240.0,0.6273978]
[1746689981348,0.2015267,99241.0,99240.0,0.63918192]
[1746689981537,0.2015267,99241.0,99240.0,0.6273978]
[1746689981735,0.2015267,99241.0,99240.0,0.63918192]
[1746689981948,0.2025267,99241.0,99240.0,0.63918192]
[1746689982651,0.2025267,99241.0,99240.0,0.6273978]
[1746689986051,0.2025267,99241.0,99240.0,0.78039252]
[1746689986750,0.2025267,99241.0,99240.0,0.73001222]
[1746689989346,0.2025267,99241.0,99240.0,0.5770175]
[1746689992558,0.2025267,99241.0,99240.0,0.5870175]
[1746689992752,0.2025267,99241.0,99240.0,0.7370175]
[1746689994056,0.2025267,99241.0,99240.0,0.5770175]
[1746689994257,0.2025267,99241.0,99240.0,0.5970175]
[1746689994660,0.2025267,99241.0,99240.0,0.60835547]
[1746689995459,0.2025267,99241.0,99240.0,0.60835992]
[1746689996267,0.001,99241.0,99240.0,0.5970175]
[1746689996460,0.001,99241.0,99240.0,0.71835992]
[1746689997862,0.001,99241.0,99240.0,0.60835992]
[1746689998063,0.2025195,99241.0,99240.0,0.60835992]
[1746689998262,0.2025195,99241.0,99240.0,0.69835992]
[1746689998459,0.2015195,99241.0,99240.0,0.69835992]
[1746689999362,0.2015195,99241.0,99240.0,0.6870175]
[1746690000458,0.2015195,99241.0,99240.0,0.69835992]
[1746690001660,0.0015,99245.0,99244.0,0.2015134]
[1746690001852,0.0015,99245.0,99244.0,0.74306242]
[1746690002060,0.0015,99245.0,99244.0,1.09292242]
[1746690003167,0.0025,99245.0,99244.0,1.09292242]
[1746690003560,0.0025,99245.0,99244.0,1.09308747]
[1746690003766,0.0035,99245.0,99244.0,1.09308747]
[1746690005064,0.2050114,99245.0,99244.0,0.89157407]
[1746690005264,0.2050114,99245.0,99244.0,0.35081407]
[1746690005658,0.2050114,99245.0,99244.0,0.31091407]
[1746690005861,0.2883114,99245.0,99244.0,0.31091407]
[1746690006164,0.2883114,99245.0,99244.0,0.2992]
[1746690006465,0.28172152,99245.0,99244.0,0.2992]
[1746690007663,0.28172152,99245.0,99244.0,0.5425134]
[1746690007969,0.28172152,99245.0,99244.0,0.341]
[1746690008468,0.28172152,99245.0,99244.0,0.5425134]
[1746690009674,0.24112152,99245.0,99244.0,0.5425134]
[1746690009861,0.24112152,99245.0,99244.0,0.5525134]
[1746690010165,0.2015072,99248.0,99247.0,0.2015053]
[1746690010367,0.2015072,99248.0,99247.0,0.8023053]
[1746690010762,0.2417072,99248.0,99247.0,0.8023053]
[1746690011166,0.2417072,99248.0,99247.0,0.9703053]
[1746690011364,0.2427072,99248.0,99247.0,0.9703053]
[1746690012463,0.2427072,99248.0,99247.0,0.98201937]
[1746690012868,0.2437072,99248.0,99247.0,0.98201937]
[1746690013072,0.2035072,99248.0,99247.0,0.98201937]
[1746690014172,0.2035072,99248.0,99247.0,0.98205287]
[1746690015066,0.2035072,99248.0,99247.0,1.08681287]
[1746690015579,0.2035072,99248.0,99247.0,1.27681287]
[1746690015771,0.2035072,99248.0,99247.0,1.10681287]
[1746690016275,0.2035072,99248.0,99247.0,1.26681287]
[1746690016673,0.2035072,99248.0,99247.0,1.12681287]
[1746690016974,0.2035072,99248.0,99247.0,1.48761287]
[1746690017575,0.2035072,99248.0,99247.0,1.69153009]
[1746690020677,0.2466072,99248.0,99247.0,1.69153009]
[1746690021178,0.0451,99248.0,99247.0,1.69153009]
[1746690021579,0.002,99248.0,99247.0,1.69153009]
[1746690022581,0.2035053,99248.0,99247.0,1.73443009]
[1746690023271,0.2035053,99248.0,99247.0,1.77483009]
[1746690025079,0.002,99248.0,99247.0,1.77483009]
[1746690025271,0.002,99248.0,99247.0,1.82483009]
[1746690025778,0.2035053,99248.0,99247.0,1.82483009]
[1746690026181,0.2035053,99248.0,99247.0,1.49292479]
[1746690026371,0.2891053,99248.0,99247.0,1.49292479]
[1746690026571,0.2891053,99248.0,99247.0,1.69443209]
[1746690026973,0.2891053,99248.0,99247.0,1.49292479]
[1746690027781,0.2891053,99248.0,99247.0,1.28900757]
[1746690028082,0.2891053,99248.0,99247.0,1.49051487]
[1746690028277,0.2891053,99248.0,99247.0,1.49057333]
[1746690028786,0.2891053,99248.0,99247.0,1.56057333]
[1746690033484,0.2891053,99248.0,99247.0,1.60347333]
[1746690034282,0.2891053,99248.0,99247.0,1.40196603]
[1746690034492,0.2891053,99248.0,99247.0,1.29906603]
[1746690034787,0.2891053,99248.0,99247.0,1.28906603]
[1746690035875,0.2891053,99248.0,99247.0,1.24616603]
[1746690037187,0.2891053,99248.0,99247.0,1.45041021]
[1746690038688,0.2891053,99248.0,99247.0,1.08961021]
[1746690039983,0.2891053,99248.0,99247.0,0.88536603]
[1746690040187,0.2891053,99248.0,99247.0,0.87356]
[1746690042888,0.2891053,99248.0,99247.0,0.7188]
[1746690046879,0.2891053,99248.0,99247.0,0.5288]
[1746690047088,0.2891053,99248.0,99247.0,0.5788]
[1746690048387,0.2891053,99248.0,99247.0,0.59060715]
[1746690050389,0.2891053,99248.0,99247.0,0.63060715]
[1746690051395,0.2891053,99248.0,99247.0,0.6188]
[1746690051594,0.2891053,99248.0,99247.0,0.63054691]
[1746690051895,0.2891053,99248.0,99247.0,0.63054693]
[1746690052196,0.2891053,99248.0,99247.0,0.67284693]
[1746690052696,0.002,99248.0,99247.0,1.2118073]
[1746690052886,0.002,99248.0,99247.0,1.22355423]
[1746690053092,0.2035053,99248.0,99247.0,1.22355423]
[1746690053792,0.2035053,99248.0,99247.0,1.2236132]
[1746690054094,0.2035053,99248.0,99247.0,1.22361357]
[1746690055000,0.2035053,99248.0,99247.0,1.02210627]
[1746690055495,0.2035053,99248.0,99247.0,1.02210691]
[1746690055693,0.2035053,99248.0,99247.0,1.22361421]
[1746690057697,0.2035053,99248.0,99247.0,1.10361421]
[1746690059099,0.2035053,99248.0,99247.0,0.90210691]
[1746690059300,0.2035053,99248.0,99247.0,0.64210691]
[1746690059500,0.2035053,99248.0,99247.0,0.62210691]
[1746690059907,0.2884053,99248.0,99247.0,0.67210691]
[1746690063903,0.2884053,99248.0,99247.0,0.67194786]
[1746690065698,0.2884053,99248.0,99247.0,0.6603]
[1746690066097,0.2884053,99248.0,99247.0,0.4822576]
[1746690066396,0.3891653,99248.0,99247.0,0.1214576]
[1746690066598,0.3991653,99248.0,99247.0,0.1214576]
[1746690066805,0.8991653,99248.0,99247.0,0.1214576]
[1746690071196,0.8991653,99248.0,99237.0,0.0423]
[1746690071197,0.2015256,99238.0,99237.0,0.0423]
[1746690071395,0.2015276,99237.0,99236.0,0.15318207]
[1746690071607,0.2835276,99237.0,99236.0,0.15318207]
[1746690071807,0.2935276,99237.0,99236.0,0.15318207]
[1746690072205,0.2935276,99237.0,99236.0,0.32118207]
[1746690072405,0.2935276,99237.0,99236.0,0.32218207]
[1746690072809,0.7935276,99237.0,99236.0,0.32218207]
[1746690073407,0.7522276,99237.0,99236.0,0.32218207]
[1746690073608,0.7562276,99237.0,99236.0,0.32218207]
[1746690073808,0.7562276,99237.0,99236.0,0.209]
[1746690074396,0.7562276,99237.0,99236.0,0.2923]
[1746690074807,0.7562276,99237.0,99236.0,0.2913]
[1746690075009,0.7592276,99237.0,99236.0,0.2913]
[1746690077109,0.7552276,99237.0,99236.0,0.2913]
[1746690077309,0.7592276,99237.0,99236.0,0.2913]
[1746690077703,0.5577,99237.0,99236.0,0.2913]
[1746690077902,0.5507,99237.0,99236.0,0.2913]
[1746690078105,0.5577,99237.0,99236.0,0.2913]
[1746690079211,0.5547,99237.0,99236.0,0.2913]
[1746690080313,0.5547,99237.0,99236.0,0.2506]
[1746690081013,0.5507,99237.0,99236.0,0.2506]
[1746690081213,0.5517,99237.0,99236.0,0.2506]
[1746690081716,0.5527,99237.0,99236.0,0.2506]
[1746690082105,0.5517,99237.0,99236.0,0.2506]
[1746690082413,0.5527,99237.0,99236.0,0.2506]
[1746690082609,0.513,99237.0,99236.0,0.2506]
[1746690082816,0.503,99237.0,99236.0,0.2506]
[1746690083015,0.503,99237.0,99236.0,0.4406]
[1746690083716,0.003,99237.0,99236.0,0.3306]
[1746690083919,0.001,99237.0,99236.0,0.3206]
[1746690084102,0.0409,99255.0,99236.0,0.3206]
[1746690084307,0.0409,99255.0,99241.0,0.3608]
[1746690084608,0.0409,99255.0,99250.0,0.3608]
[1746690084804,0.0409,99255.0,99251.0,0.0822]
[1746690085011,0.0409,99255.0,99251.0,0.1522]
[1746690085210,0.0409,99255.0,99251.0,0.3202]
[1746690085914,0.5,99253.0,99251.0,0.3202]
[1746690086114,0.0408,99252.0,99251.0,0.3202]
[1746690087603,0.002,99253.0,99251.0,0.3202]
[1746690088309,0.5,99252.0,99251.0,0.3202]
[1746690088505,0.502,99252.0,99251.0,0.3202]
[1746690088709,0.7034926,99252.0,99251.0,0.3202]
[1746690088911,0.7442926,99252.0,99251.0,0.3202]
[1746690089817,0.7422926,99252.0,99251.0,0.3202]
[1746690090018,0.7452926,99252.0,99251.0,0.3202]
[1746690090815,0.7064926,99252.0,99251.0,0.3202]
[1746690091616,0.7064926,99252.0,99251.0,0.3302]
[1746690092715,0.2064926,99252.0,99251.0,0.3302]
[1746690092917,0.2064926,99252.0,99251.0,0.3502]
[1746690093221,0.2054926,99252.0,99251.0,0.3502]
[1746690097518,0.2054926,99252.0,99251.0,0.5516944]
[1746690097825,0.2014947,99258.0,99257.0,0.2518503]
[1746690098026,0.2014947,99258.0,99257.0,0.7626503]
[1746690098220,0.2014947,99258.0,99257.0,0.8802792]
[1746690099320,0.2014947,99258.0,99257.0,0.9902792]
[1746690099521,0.2054947,99258.0,99257.0,0.9902792]
[1746690100523,0.2074947,99258.0,99257.0,1.00054967]
[1746690105027,0.2074947,99258.0,99257.0,1.15210967]
[1746690109431,0.2074947,99258.0,99257.0,0.95063047]
[1746690110425,0.2074947,99258.0,99257.0,1.23541747]
[1746690111728,0.2074947,99258.0,99257.0,1.03393047]
[1746690114730,0.2074947,99258.0,99257.0,1.23541747]
[1746690115738,0.2074947,99258.0,99257.0,1.03393047]
[1746690116434,0.2074947,99258.0,99257.0,0.894176]
[1746690116639,0.2074947,99258.0,99257.0,1.045736]
[1746690117638,0.2074947,99258.0,99257.0,1.03393047]
[1746690118638,0.2074947,99258.0,99257.0,1.045736]
[1746690118839,0.2074947,99258.0,99257.0,1.03393047]
[1746690119233,0.2074947,99258.0,99257.0,1.045736]
[1746690121040,0.2074947,99258.0,99257.0,0.733076]
[1746690121233,0.2074947,99258.0,99257.0,0.884636]
[1746690122142,0.2074947,99258.0,99257.0,1.086123]
[1746690122640,0.2074947,99258.0,99257.0,0.904636]
[1746690123747,0.2518189,99275.0,99274.0,0.2014505]
[1746690124037,0.2014561,99275.0,99274.0,0.8716]
[1746690124241,0.0015,99280.0,99274.0,0.8716]
[1746690124242,0.0015,99280.0,99279.0,0.2014423]
[1746690124440,0.2029403,99280.0,99279.0,0.52069369]
[1746690124636,0.0015,99280.0,99279.0,0.52069035]
[1746690124830,0.0015,99280.0,99279.0,0.59969035]
[1746690125042,0.2029403,99280.0,99279.0,0.59969035]
[1746690125245,0.2029403,99280.0,99279.0,0.87769035]
[1746690125542,0.2029403,99280.0,99279.0,0.68769035]
[1746690125949,0.2029403,99280.0,99279.0,0.83769035]
[1746690126441,0.2029403,99280.0,99279.0,0.83769027]
[1746690126640,0.2029403,99280.0,99279.0,0.83869027]
[1746690126835,0.0015,99280.0,99279.0,0.83869027]
[1746690127040,0.0423,99287.0,99286.0,0.2014263]
[1746690127041,0.2014352,99287.0,99286.0,0.2014263]
[1746690127350,0.2014352,99287.0,99286.0,1.0019463]
[1746690128141,0.2014352,99287.0,99286.0,1.2510463]
[1746690129443,0.2014214,99290.0,99289.0,0.20142]
[1746690129647,0.2014214,99290.0,99289.0,0.85176973]
[1746690130135,0.2014214,99290.0,99289.0,1.01976973]
[1746690132944,0.0413,99291.0,99290.0,0.20142]
[1746690133148,0.2517678,99295.0,99294.0,0.20141]
[1746690133348,0.2517678,99295.0,99294.0,0.43141]
[1746690133840,0.2517678,99295.0,99294.0,0.51401]
[1746690134350,0.2517678,99295.0,99294.0,0.68201]
[1746690134649,0.2517678,99295.0,99294.0,0.4806]
[1746690135043,0.2527678,99295.0,99294.0,0.4806]
[1746690136145,0.2537678,99295.0,99294.0,0.4806]
[1746690136353,0.2537678,99295.0,99294.0,0.4005]
[1746690139563,0.2537678,99295.0,99294.0,0.55018]
[1746690141063,0.2537678,99295.0,99294.0,0.58018]
[1746690144561,0.2537678,99295.0,99294.0,0.4305]
[1746690148065,0.2527678,99295.0,99294.0,0.4305]
[1746690148265,0.2527678,99295.0,99294.0,0.4325]
[1746690148966,0.2517678,99295.0,99294.0,0.4325]
[1746690149164,0.2517678,99295.0,99294.0,0.4345]
[1746690149668,0.2517678,99295.0,99294.0,0.4325]
[1746690149868,0.0406,99301.0,99294.0,0.4325]
[1746690150069,0.2923472,99301.0,99300.0,0.3608]
[1746690150370,0.2013977,99301.0,99300.0,0.5808]
[1746690151068,0.2013977,99301.0,99300.0,0.7488]
[1746690151269,0.0503487,99303.0,99300.0,0.7488]
[1746690151464,0.2013957,99302.0,99301.0,0.0804]
[1746690151670,0.2013957,99302.0,99301.0,0.3204]
[1746690152068,0.2013957,99302.0,99301.0,0.4884]
[1746690152667,0.2023957,99302.0,99301.0,0.4884]
[1746690153263,0.2418957,99302.0,99301.0,0.4884]
[1746690154760,0.2428957,99302.0,99301.0,0.4884]
[1746690156068,0.2428957,99302.0,99301.0,0.8492]
[1746690158672,0.2428957,99302.0,99301.0,0.86100086]
[1746690158967,0.2033957,99302.0,99301.0,0.86100086]
[1746690159174,0.2033957,99302.0,99301.0,0.8492]
[1746690159667,0.002,99302.0,99301.0,1.06239848]
[1746690160464,0.002,99302.0,99301.0,1.06239847]
[1746690162182,0.002,99302.0,99301.0,1.06239815]
[1746690162676,0.2033957,99302.0,99301.0,1.06239815]
[1746690163477,0.2033957,99302.0,99301.0,1.18239815]
[1746690163979,0.2033957,99302.0,99301.0,1.1823981]
[1746690166575,0.2033957,99302.0,99301.0,1.1705977]
[1746690166780,0.2033957,99302.0,99301.0,1.18239778]
[1746690169481,0.050348,99304.0,99301.0,1.23274678]
[1746690169687,0.2013937,99303.0,99302.0,0.21319468]
[1746690169882,0.2013937,99303.0,99302.0,0.32180008]
[1746690170087,0.2013937,99303.0,99302.0,0.40070008]
[1746690170387,0.2013937,99303.0,99302.0,0.77009578]
[1746690171183,0.2013937,99303.0,99302.0,0.7582957]
[1746690171387,0.2023937,99303.0,99302.0,0.770095]
[1746690173090,0.2456937,99303.0,99302.0,0.77009503]
[1746690173589,0.2456937,99303.0,99302.0,0.7582957]
[1746690175089,0.2456937,99303.0,99302.0,0.77009503]
[1746690176687,0.2456937,99303.0,99302.0,0.56869933]
[1746690176883,0.2866937,99303.0,99302.0,0.45859933]
[1746690178387,0.2866937,99303.0,99302.0,0.45859945]
[1746690179092,0.2856937,99303.0,99302.0,0.46059945]
[1746690179301,0.2846937,99303.0,99302.0,0.4508]
[1746690179591,0.2846937,99303.0,99302.0,0.46259945]
[1746690179993,0.2846937,99303.0,99302.0,0.46059945]
[1746690180192,0.2846937,99303.0,99302.0,0.46159945]
[1746690181093,0.2846937,99303.0,99302.0,0.49159945]
[1746690181687,0.2846937,99303.0,99302.0,0.42279945]
[1746690181889,0.2846937,99303.0,99302.0,0.19279945]
[1746690182794,0.7846937,99303.0,99302.0,0.19279945]
[1746690186298,0.7846937,99303.0,99302.0,0.20279945]
[1746690186498,0.7846937,99303.0,99302.0,0.191]
[1746690187994,0.7846937,99303.0,99302.0,0.181]
[1746690190098,0.7846937,99303.0,99302.0,0.19280071]
[1746690190291,0.7846937,99303.0,99302.0,0.2194]
[1746690190490,0.7846937,99303.0,99302.0,0.19280048]
[1746690192101,0.7846937,99303.0,99302.0,0.20280048]
[1746690192496,0.7846937,99303.0,99302.0,0.24120048]
[1746690193499,0.7846937,99303.0,99302.0,0.23120048]
[1746690193898,0.7846937,99303.0,99302.0,0.2194]
[1746690194202,0.7946937,99303.0,99302.0,0.23120042]
[1746690194400,0.7946937,99303.0,99302.0,0.2194]
[1746690200005,0.7946937,99303.0,99302.0,0.2593]
[1746690204703,0.7946937,99303.0,99302.0,0.181]
[1746690204903,0.8953977,99303.0,99302.0,0.171]
[1746690207702,0.8953977,99303.0,99302.0,0.168]
[1746690207703,0.8973977,99303.0,99302.0,0.168]
[1746690208505,0.8983977,99303.0,99302.0,0.168]
[1746690208805,0.8973977,99303.0,99302.0,0.168]
[1746690209010,0.8983977,99303.0,99302.0,0.168]
[1746690209209,0.8963977,99303.0,99302.0,0.168]
[1746690209410,0.8983977,99303.0,99302.0,0.168]
[1746690209614,0.8983977,99303.0,99302.0,0.2109]
[1746690211111,0.8983977,99303.0,99302.0,0.168]
[1746690215618,0.7976937,99303.0,99302.0,0.168]
[1746690216410,0.8983977,99303.0,99302.0,0.168]
[1746690216610,0.7976937,99303.0,99302.0,0.168]
[1746690225834,0.8983977,99303.0,99297.0,0.0828]
[1746690226131,0.2014038,99298.0,99297.0,0.2087]
[1746690226520,0.3121118,99298.0,99297.0,0.2087]
[1746690227025,0.3944118,99298.0,99297.0,0.2087]
[1746690227421,0.8944118,99298.0,99297.0,0.2087]
[1746690227824,0.8954118,99298.0,99297.0,0.2087]
[1746690228420,0.694008,99298.0,99279.0,0.15292108]
[1746690228635,0.2014342,99283.0,99282.0,0.0393]
[1746690228930,0.2014342,99283.0,99279.0,8e-08]
[1746690228931,0.2014403,99280.0,99279.0,8e-08]
[1746690229126,0.2014403,99280.0,99273.0,0.56442443]
[1746690229127,0.2014525,99274.0,99273.0,0.12302921]
[1746690229323,0.2014525,99274.0,99270.0,0.12302921]
[1746690229324,0.2014586,99271.0,99270.0,0.12302921]
[1746690230124,0.2810586,99271.0,99270.0,0.29102921]
[1746690230329,0.7810586,99271.0,99270.0,0.29102921]
[1746690230734,0.7810586,99271.0,99270.0,0.29602921]
[1746690231537,0.7810586,99271.0,99270.0,0.29102921]
[1746690232737,0.8817946,99271.0,99270.0,0.29102921]
[1746690233432,0.8817946,99271.0,99270.0,0.168]
[1746690235636,0.7810586,99271.0,99270.0,0.168]
[1746690238537,0.7418586,99271.0,99270.0,0.168]
[1746690238738,0.7014586,99271.0,99270.0,0.168]
[1746690239136,0.7014586,99271.0,99270.0,0.198]
[1746690241339,0.2014557,99273.0,99270.0,0.448]
[1746690241539,0.2014557,99273.0,99272.0,0.2014525]
[1746690241735,0.2518193,99273.0,99272.0,0.3114525]
[1746690242038,0.2518193,99273.0,99272.0,0.1885]
[1746690242237,0.2518193,99273.0,99272.0,0.3565]
[1746690243736,0.2518193,99273.0,99272.0,0.3575]
[1746690243942,0.2518193,99273.0,99272.0,0.5589566]
[1746690244144,0.2518193,99273.0,99272.0,0.5599566]
[1746690244539,0.2518193,99273.0,99272.0,0.3575]
[1746690244848,0.2518193,99273.0,99272.0,0.3585]
[1746690258143,0.2518193,99273.0,99272.0,0.3785]
[1746690259350,0.2014557,99273.0,99272.0,0.5799566]
[1746690262647,0.2014557,99273.0,99272.0,0.9407566]
[1746690266258,0.2014557,99273.0,99272.0,0.95256055]
[1746690267457,0.050363,99276.0,99272.0,0.840032]
[1746690267663,0.050363,99276.0,99275.0,0.2517998]
[1746690267664,0.3021785,99276.0,99275.0,0.2517998]
[1746690267949,0.3021785,99276.0,99275.0,0.5517998]
[1746690268153,0.3021785,99276.0,99275.0,0.73160375]
[1746690269043,0.3021785,99276.0,99275.0,0.81040375]
[1746690269243,0.0387,99290.0,99275.0,0.81040375]
[1746690269244,0.2014335,99284.0,99283.0,0.2517883]
[1746690269443,0.2014335,99284.0,99283.0,1.31249225]
[1746690269655,0.2014335,99284.0,99283.0,1.35259225]
[1746690270252,0.2014335,99284.0,99283.0,1.53047945]
[1746690271158,0.2014335,99284.0,99283.0,1.53347945]
[1746690271456,0.2014335,99284.0,99283.0,1.5246755]
[1746690271655,0.2014335,99284.0,99283.0,1.53647945]
[1746690271851,0.2014335,99284.0,99283.0,1.53347945]
[1746690272057,0.2014335,99284.0,99283.0,1.53647945]
[1746690272458,0.2014335,99284.0,99283.0,1.63719945]
[1746690273252,0.2014335,99284.0,99283.0,1.63719668]
[1746690273664,0.2014335,99284.0,99283.0,1.53647668]
[1746690274064,0.2014335,99284.0,99283.0,1.53347668]
[1746690274263,0.2014335,99284.0,99283.0,1.53647668]
[1746690274961,0.2014335,99284.0,99283.0,1.53347668]
[1746690275155,0.2014335,99284.0,99283.0,1.53647668]
[1746690276262,0.2014335,99284.0,99283.0,1.48611858]
[1746690276763,0.2014335,99284.0,99283.0,1.4743174]
[1746690277761,0.0503409,99318.0,99305.0,0.2013896]
[1746690278063,0.0503445,99311.0,99305.0,1.10483078]
[1746690278262,0.0503434,99313.0,99305.0,1.27283078]
[1746690278663,0.2013839,99308.0,99305.0,1.2610296]
[1746690278855,0.002,99306.0,99305.0,1.27282794]
[1746690279461,0.002,99306.0,99305.0,1.31352794]
[1746690279661,0.002,99306.0,99305.0,1.65352794]
[1746690279861,0.081,99314.0,99309.0,0.0503451]